Cogmind - Beta 15 @@@ ROGUE MODE // 2025.09.05 @ 22:41:23 Player: Ice_Kraken505 Result: Destroyed by Y-45 Defender with Heavy Assault Rifle Performance ------------- Evolutions (2) 1000 Regions Visited (3) 600 Robots Destroyed (96) 480 Value Destroyed (1907) 1907 Prototype IDs (6) 120 Alien Tech Used (0) 0 Bonus (8) 8 TOTAL SCORE: 4115 Bonus ------- High Alert Combat Kills 8 Cogmind --------- Core Integrity 0/550 Matter 258/300 Energy 93/160 System Corruption 5% Temperature Cool (9) Movement Treading (160) Location -8/Materials Parts ------- > --- POWER (1) -------- Light Nuclear Core > --- PROPULSION (3) --- Light Treads Light Treads > --- UTILITY (4) ------ Targeting Computer Recoil Stabilizer Hacking Suite > --- WEAPON (3) ------- (None) > --- INVENTORY (5) ---- Hover Unit Hover Unit Improved Heat Sink Hacking Suite Peak State ------------ > --- POWER ------------ Improved Ion Engine > --- PROPULSION ------- Wheel Wheel Wheel > --- UTILITY ---------- Small Storage Unit Core Shielding Hacking Suite Hacking Suite > --- WEAPON ----------- Light Assault Rifle Light Assault Rifle Advanced EMP Blaster > --- INVENTORY -------- Improved Heat Sink ECM Suite Hardened Medium Armor Plating Hacking Suite Grenade Launcher Improved Datajack [Rating: 20] Favorites ----------- Power Ion Engine Engine Ion Engine Power Core Light Nuclear Core Propulsion Wheel Treads Light Treads Leg Aluminum Leg Wheel Wheel Hover Unit Hover Unit Flight Unit Flight Unit Utility Small Storage Unit Device Recoil Stabilizer Storage Small Storage Unit Processor Transport Network Coupler Hackware Hacking Suite Protection Core Shielding Weapon Light Assault Rifle Energy Gun Improved Medium Laser Energy Cannon EM Pulse Cannon Ballistic Gun Light Assault Rifle Launcher Grenade Launcher Special Melee Weapon Improved Datajack Build | -11 -10 -9 -8 ------- Run | Yrd Mat Mat Mat Slots Evolved 4 | . . 2 2 Power . | . . . . Propulsion 1 | . . . 1 Utility 2 | . . 1 1 Weapon 1 | . . 1 . Parts Attached 73 | 9 9 24 31 Power 11 | 1 1 5 4 Engine 9 | 1 1 5 2 Core 2 | . . . 2 Reactor . | . . . . Propulsion 21 | 4 3 3 11 Treads 2 | . . . 2 Leg 4 | 2 . . 2 Wheel 11 | 2 3 3 3 Hover 1 | . . . 1 Flight 3 | . . . 3 Utility 15 | 2 2 4 7 Device 3 | 1 . . 2 Storage 1 | 1 . . . Processor 4 | . 2 1 1 Hackware 2 | . . . 2 Protection 5 | . . 3 2 Artifact . | . . . . Weapon 26 | 2 3 12 9 Energy Gun 4 | . . 2 2 Energy Cannon 1 | . . . 1 Ballistic Gun 16 | 2 3 8 3 Ballistic Cannon . | . . . . Launcher 3 | . . 1 2 Special Weapon . | . . . . Impact Weapon . | . . . . Slashing Weapon . | . . . . Piercing Weapon . | . . . . Special Melee Weapon 2 | . . 1 1 Unidentified Prototypes 6 | . . 4 2 Corrupted Parts 2 | . . . 2 System Corruption 5 | . . . 5 Parts Lost 30 | . . 5 25 Power 4 | . . . 4 Propulsion 8 | . . 2 6 Utility 4 | . . . 4 Weapon 14 | . . 3 11 Highest Loss Streak 13 | . . 5 13 To Critical Strikes . | . . . . Average Backups 5 | 3 6 7 4 Power . | . 1 . . Propulsion 1 | 1 2 1 . Utility 2 | . . 3 2 Weapon 1 | . 2 1 . Tool/Special . | . . . . Unused Backups 13 | 1 2 4 6 Power 3 | . 1 1 1 Propulsion 3 | 1 . . 2 Utility 5 | . . 2 3 Weapon 2 | . 1 1 . Tool/Special . | . . . . Average Slot Usage (%) 88 | . 100 97 72 Engine 9 | . 14 11 4 Leg 1 | . . . 3 Wheel 17 | . 28 21 7 Device 2 | . 6 . 4 Storage 9 | . 14 10 6 Processor 7 | . 7 11 2 Hackware 5 | . . . 12 Protection 7 | . . 9 8 Energy Gun 4 | . . 9 1 Ballistic Gun 18 | . 28 19 13 Special Melee Weapon 2 | . . 2 2 Peak Build Rating 20 | 9 9 16 20 Average Rating 12 | 5 8 13 14 On Entrance 7 | . 9 7 14 Naked Turns . | . . . . Heaviest Build 21 | 11 13 21 20 Greatest Support 40 | 20 20 20 40 Greatest Overweight (x) 4 | . 1 1 4 Average Overweight (x) . | . . . . Largest Inventory Capacity 8 | 8 8 8 8 Average Capacity 7 | 7 8 7 7 Most Carried 8 | 6 8 8 8 Average Carried 5 | 3 6 7 4 Final Capacity 8 | 8 8 8 5 Final Carried 8 | 5 8 7 4 Class Distribution -------------------- 33% | Scavenger-Mutant 31% | Scavenger-Tank 23% | Mutant 6% | Hacker-Mutant Dominant Class ---------------- Scavenger-Mutant | -10/Materials Scavenger-Tank | -9/Materials Mutant | -8/Materials Resources | -11 -10 -9 -8 ----------- Run | Yrd Mat Mat Mat Matter Collected 1707 | 287 293 618 509 Remotely . | . . . . Salvage Created 2860 | 141 650 1379 690 Parts 199 | 9 53 83 54 Haulers Intercepted 6 | . 2 3 1 Recyclers Shooed 2 | . 1 . 1 Parts Field Recycled . | . . . . Retrieved Matter . | . . . . Parts Self-Destructed . | . . . . Prevented . | . . . . Kills | -11 -10 -9 -8 ------- Run | Yrd Mat Mat Mat Combat Hostiles Destroyed 60 | . 15 25 20 Guns 54 | . 15 22 17 Cannons 1 | . . . 1 AOE 5 | . . 3 2 Classes Destroyed 10 | 3 5 2 . Worker 6 | 1 1 4 . Builder 6 | . 1 4 1 Tunneler 4 | 3 1 . . Hauler 6 | . 2 3 1 Recycler 5 | 1 1 2 1 Operator 4 | . . 2 2 Watcher 5 | . 2 3 . Swarmer 23 | . 8 3 12 Grunt 32 | . 7 18 7 Sentry 5 | . . 4 1 Best Kill Streak 10 | 2 6 10 7 Combat Bots Only 7 | . 5 3 7 Max Kills in Single Turn 8 | 1 2 8 2 Gunslinging 1 | . . 1 1 Exploded 3 | . . 3 2 Melee . | . . . . Uniques/NPCs Destroyed . | . . . . Combat | -11 -10 -9 -8 -------- Run | Yrd Mat Mat Mat Hostile Shots Fired 410 | . 54 87 269 Missed 123 | . 17 27 79 Hits 287 | . 37 60 190 Projectile 287 | . 37 60 190 Critical Strikes 9 | . . . 9 Damage Taken 3411 | . 441 629 2341 Core 788 | . 133 101 554 Absorbed by Shields . | . . . . Redirected to Shielding 100 | . . 21 79 Regen/Repaired (Parts) 146 | . . 146 . Core Remaining (%) 73 | 100 46 74 . Volleys Fired 286 | 23 77 89 97 Largest 3 | 2 2 3 3 Hottest 132 | 40 40 132 85 Shots Fired 576 | 46 154 211 165 Gun 568 | 46 154 211 157 Cannon 3 | . . . 3 Launcher 5 | . . . 5 Special . | . . . . Kinetic 460 | 46 154 111 149 Thermal 108 | . . 100 8 Explosive 5 | . . . 5 Electromagnetic 3 | . . . 3 Robot Hit Streak 13 | 12 10 13 10 Robot Miss Streak 7 | 7 6 5 4 Penetration Max . | . . . . Secondary Targets 9 | . 1 2 6 Max Gunslinging Chain 1 | . 1 1 1 Shots Hit Robots 367 | 27 97 126 117 Core Hits 157 | 9 43 57 48 Critical Kills 2 | . . . 2 Critical Parts Destroyed 2 | . . 1 1 Critical Strikes 9 | . . 6 3 Burn 5 | . . 5 . Destroy 4 | . . 1 3 Melee Attacks 8 | . . 1 7 Impact . | . . . . Slashing . | . . . . Piercing . | . . . . Sneak Attacks 6 | . . . 6 Combat Hostiles . | . . . . Follow-up Attacks . | . . . . Damage Inflicted 5189 | 224 852 2601 1512 Guns 4111 | 224 829 1840 1218 Cannons 73 | . . . 73 Explosions 969 | . . 761 208 Melee . | . . . . Ramming 36 | . 23 . 13 Kinetic 3010 | 224 829 841 1116 Thermal 1101 | . . 999 102 Explosive 969 | . . 761 208 Electromagnetic 73 | . . . 73 Impact . | . . . . Slashing . | . . . . Piercing . | . . . . Highest Corruption 5 | . . 1 5 Average Corruption 1 | . . 1 3 Corruption Purged . | . . . . Corruption Blocked . | . . . . Effects 9 | . . 9 . Heat Flow Errors 2 | . . 2 . Energy Discharges 1 | . . 1 . Data Loss (minor) 3 | . . 3 . Data Loss (major) 1 | . . 1 . Alerts 1 | . . 1 . Weapon Failures 1 | . . 1 . Overload Shots . | . . . . Overflow Damage 155 | . . 151 4 Projectiles . | . . . . Explosions 155 | . . 151 4 Melee . | . . . . Knockbacks . | . . . . Impact . | . . . . Kinetic . | . . . . Secondary . | . . . . Self-Inflicted Damage 26 | . 11 . 15 Shots 1 | . . . 1 Rammed 9 | . 4 . 5 Targets Rammed 10 | . 4 . 6 Kicked 1 | . . . 1 Crushed . | . . . . Highest Temperature 716 | . 12 716 78 Average Temperature 96 | . 8 125 15 Received Heat Transfer 1431 | . 150 264 1017 Effects 11 | . . 11 . Shutdowns 1 | . . 1 . Energy Bleed 1 | . . 1 . Matter Decay 2 | . . 2 . Damage (minor) 3 | . . 3 . Damage (major) 4 | . . 4 . Siege Activations . | . . . . Martial Activations . | . . . . Shielding Activations . | . . . . Robots Disrupted . | . . . . Combat Hostiles . | . . . . Robots Corrupted . | . . . . Combat Hostiles . | . . . . Parts Fried . | . . . . Impact Corruptions . | . . . . Robots Melted . | . . . . Combat Hostiles . | . . . . Parts Melted 7 | . . 6 1 Heat Transferred 2812 | . . 2553 259 Parts Sabotaged . | . . . . Parts Stolen . | . . . . Parts Stripped . | . . . . Power Chain Reactions . | . . . . Alert | -11 -10 -9 -8 ------- Run | Yrd Mat Mat Mat Maximum Alert Level 2 | . 1 2 1 Low Security (%) 71 | 100 88 56 75 Level 1 26 | . 11 39 24 Level 2 1 | . . 4 . Level 3 . | . . . . Level 4 . | . . . . Level 5 . | . . . . High Security . | . . . . Max Security . | . . . . Peak Influence 421 | 10 218 421 294 Initial 169 | . . 91 169 Average 161 | . 127 193 175 Influence Increases 1912 | 25 429 820 638 Destroy 0b10 Robot/C 1200 | . 300 500 400 Destroy 0b10 Robot/NC 180 | 25 40 90 25 Destroy Leader 262 | . 68 122 72 Successful Hack 41 | . 6 32 3 Disable Machine 15 | . . 15 . Destroy Structure 34 | . . 16 18 Lose Combat Pursuer 180 | . 15 45 120 Influence Decreases 1789 | 25 211 635 918 Entered New Map 361 | . . 127 234 Time Decay 1128 | 25 211 458 434 Lost Part 300 | . . 50 250 Squads Dispatched 14 | . 3 6 5 Investigation 9 | . 3 5 1 Extermination . | . . . . Reinforcement 5 | . . 1 4 Assault . | . . . . Garrison . | . . . . Intercept . | . . . . Searches Triggered . | . . . . Construction Impeded 1 | . . . 1 Haulers Reinforced . | . . . . Active Scanning Responses . | . . . . Cargo Convoy Interrupts . | . . . . Stealth | -11 -10 -9 -8 --------- Run | Yrd Mat Mat Mat Distress Signals 3 | . . 3 . Communications Jammed . | . . . . Distress Signals . | . . . . Times Spotted 97 | . 22 33 42 Peak Tracking Total 7 | . 5 4 7 Tactical Retreats 6 | . 1 1 4 Traps | -11 -10 -9 -8 ------- Run | Yrd Mat Mat Mat Traps Triggered 4 | . 3 1 . Indirectly . | . . . . Trap Hack Attempts . | . . . . Triggered . | . . . . Disarmed . | . . . . Reprogrammed . | . . . . Reused . | . . . . Traps Extracted . | . . . . Installed . | . . . . Triggered . | . . . . Machines | -11 -10 -9 -8 ---------- Run | Yrd Mat Mat Mat Machines Disabled 2 | . . 2 . Max in Single Turn 1 | . . 1 . Machines Repaired . | . . . . Machines Dismantled . | . . . . Machines Sabotaged . | . . . . Overloaded Fab Kills . | . . . . Hacking | -11 -10 -9 -8 --------- Run | Yrd Mat Mat Mat Machines Accessed 10 | . 3 5 2 Terminals 6 | . 2 3 1 Fabricators . | . . . . Repair Stations 2 | . . 2 . Recycling Units 1 | . 1 . . Scanalyzers 1 | . . . 1 Garrison Access . | . . . . Total Hacks 47 | . 14 26 7 Successful 22 | . 5 13 4 Failed 25 | . 9 13 3 Catastrophic 5 | . 1 4 . Database Lockouts . | . . . . Manual 3 | . . 3 . Terminals 32 | . 11 16 5 Fabricators . | . . . . Repair Stations 10 | . . 10 . Recycling Units 3 | . 3 . . Scanalyzers 2 | . . . 2 Garrison Access . | . . . . Terminal Hacks 12 | . 4 6 2 Record 8 | . 4 4 . Robot Analysis 1 | . . 1 . Emergency Access Points 1 | . . 1 . Locate Traps 1 | . . . 1 Hauler Manifests 1 | . . . 1 Fabricator Hacks . | . . . . Repair Station Hacks 7 | . . 7 . Scan Component 4 | . . 4 . Repair 3 | . . 3 . Recycling Unit Hacks 1 | . 1 . . Report Inventory 1 | . 1 . . Scanalyzer 2 | . . . 2 Insert Component 1 | . . . 1 Analyze 1 | . . . 1 Garrison Access Hacks . | . . . . Unauthorized Hacks . | . . . . Terminals . | . . . . Fabricators . | . . . . Repair Stations . | . . . . Recycling Units . | . . . . Scanalyzers . | . . . . Garrison Access . | . . . . Data Cores Recovered . | . . . . Used . | . . . . Hacking Detections 9 | . 3 4 2 Full Trace Events 7 | . 2 4 1 Feedback Events 1 | . . 1 . Corruption 1 | . . 1 . Feedback Blocked . | . . . . Robot Schematics Acquired . | . . . . Robots Built . | . . . . Authchips . | . . . . Time . | . . . . Total Robot Build Rating . | . . . . Part Schematics Acquired 1 | . . . 1 Parts Built . | . . . . Authchips . | . . . . Time . | . . . . Total Part Build Rating . | . . . . Parts Repaired 3 | . . 3 . Time 65 | . . 65 . Parts Recycled . | . . . . Recycled Matter . | . . . . Retrieved Matter . | . . . . Retrieved Components . | . . . . Parts Scanalyzed 1 | . . . 1 Part Schematics Acquired 1 | . . . 1 Parts Damaged . | . . . . Bothacking | -11 -10 -9 -8 ------------ Run | Yrd Mat Mat Mat Used RIF Installer . | . . . . Robots Hacked 4 | . . . 4 Non-combat 3 | . . . 3 Combat 1 | . . . 1 Robot Hacks Applied 5 | . . . 5 parse_system 2 | . . . 2 no_distress 3 | . . . 3 Relay Couplers Released . | . . . . Fabnet Peak Effective % . | . . . . Robots Rewired . | . . . . Allies Hacked . | . . . . Hacks Repelled . | . . . . Allies | -11 -10 -9 -8 -------- Run | Yrd Mat Mat Mat Total Allies . | . . . . Largest Group . | . . . . Highest-Rated Group . | . . . . Highest-Rated Ally . | . . . . Total Orders . | . . . . Ally Attacks . | . . . . Total Damage . | . . . . Kills . | . . . . Allies Corrupted . | . . . . Allies Melted . | . . . . Intel | -11 -10 -9 -8 ------- Run | Yrd Mat Mat Mat Active Infowar (turns) 1938 | 42 497 1144 255 Optics 117 | . 117 . . Terrain 255 | 42 213 . . T.N.C. 1545 | . 167 1144 234 ECM 21 | . . . 21 Robot Analysis Total 1 | . . 1 . Derelict Logs Recovered . | . . . . Drone Launches . | . . . . Drone Recoveries . | . . . . Exploration | -11 -10 -9 -8 ------------- Run | Yrd Mat Mat Mat Turns Passed 2924 | 217 498 1144 1065 Spaces Moved 1766 | 136 311 802 517 Core 50 | 11 . . 39 Treads 15 | . . . 15 Legs 197 | 39 . . 158 Wheels 1416 | 86 311 802 217 Hover 32 | . . . 32 Flight 56 | . . . 56 Fastest Speed 50 | 50 80 80 80 Average Speed 94 | 89 80 85 119 Slowest Speed 360 | 120 95 95 360 Overloaded Moves . | . . . . Propulsion Burnouts . | . . . . Robots Hopped . | . . . . Potential Cave-ins . | . . . . Cave-ins Triggered . | . . . . Exploration Rate (%) 32 | 5 36 52 35 Regions Visited 3 Branch Regions . Pre-discovered Areas . | . . . . Known Exits Taken . | . . . . Unknown Exits Taken 3 | 1 1 1 . Scrap Searched . | . . . . Spaces Dug . | . . . . Terrain Destroyed 53 | . . 17 36 Melee . | . . . . Projectile . | . . . . AOE 53 | . . 17 36 Terrain Rammed . | . . . . Walls Destroyed . | . . . . Machines Disabled . | . . . . Actions | -11 -10 -9 -8 --------- Run | Yrd Mat Mat Mat Total 2566 | 195 440 1093 838 Wait 257 | 12 13 112 120 Move 1763 | 135 310 801 517 Hop . | . . . . Pick Up 100 | 14 15 35 36 Fast Attach . | . . . . Attach 64 | 8 4 17 35 Detach . | . . . . Swap 25 | 1 5 15 4 Drop 53 | 2 12 23 16 Fire 286 | 23 77 89 97 Melee 8 | . . 1 7 Ram 9 | . 4 . 5 Kick 1 | . . . 1 Crush . | . . . . Escape Stasis . | . . . . Rewire . | . . . . Trap . | . . . . Miscellaneous . | . . . . Route ------- -11/Scrapyard -10/Materials (discovered 2 exits: *Mat x2) -9/Materials (discovered 2 exits: *Mat / [*Min]) -8/Materials History --------- Turn | Location | Event 5 | -11/Scrapyard | Discovered new exit (range 15) 218 | -11/Scrapyard | Entered Materials 314 | -10/Materials | Build established: Mutant 596 | -10/Materials | Discovered new exit (range 16) 620 | -10/Materials | Discovered new exit (range 13) 621 | -10/Materials | Build established: Scavenger-Mutant 700 | -10/Materials | Core integrity fell below 50% 716 | -10/Materials | Entered another Materials area 716 | -9/Materials | Evolved 2 slots: Utility x1, Weapon x1 923 | -9/Materials | Discovered new exit (range 12) 1013 | -9/Materials | Repaired Wheel 1039 | -9/Materials | Repaired Wheel 1409 | -9/Materials | Lost 5 parts (2n3w) 1515 | -9/Materials | Discovered new exit (range 16) 1609 | -9/Materials | Repaired Sml. Storage Unit 1741 | -9/Materials | Build established: Scavenger-Tank 1860 | -9/Materials | Entered another Materials area 1860 | -8/Materials | Evolved 2 slots: Propulsion x1, Utility x1 2015 | -8/Materials | Lost 5 parts (1p3n1w) 2020 | -8/Materials | Destroyed 7 combat bots 2100 | -8/Materials | Lost 3 parts (1p2w) 2538 | -8/Materials | Core integrity fell below 50% 2583 | -8/Materials | Core integrity fell below 20% 2624 | -8/Materials | Lost 13 parts (2p3n3u5w) 2848 | -8/Materials | Build established: Mutant 2925 | -8/Materials | Destroyed by Y-45 Defender with Heavy Assault Rifle Last Messages --------------- G-47 Trooper destroyed. U-05 Engineer builds a Door. Acquired Lgt. Treads. Acquired 52 matter. [Achievement: Universal Adapter] Acquired Corrupted Lgt. Treads. Integrated Corrupted Lgt. Treads (+2). Dropped Titanium Leg. Acquired 50 matter. Acquired 27 matter. Beam Rifle destroyed. K-01 Serf collects debris. Acquired Corrupted Lgt. Nuclear Core. Critical hit (Burn: +37). Integrated Corrupted Lgt. Nuclear Core (+3). Complication: Energy sink damages Corrupted Lgt. Nuclear Core (-21). Dropped Lgt. Treads. Acquired Lgt. Treads. K-01 Serf collects debris. Map ----- +----------------------------------------------------+ | ?????????????????????????????????????????????????? | | ?????????????????????????????????????????????????? | | ?????????????????????????????????????????????????? | | ?????????????????????????????????????????????????? | | ?????????????????????????????????????????????????? | | ?????????????????????????????????????????????????? | | ?????????????????????????????????????????????????? | | ?????????????????????????????????????????????????? | | ???????????????????????###+###???????????????????? | | ???????????????????????# #???????????????????? | | ???????????????????????? ????????????????????? | | ???????????????????????? ????????????????????? | | ???????????????????????? ! ????????????????????? | | ???????????????????????? ????????????????????? | | ????????????????????????# #????????????????????? | | ????????????????????????# #????????????????????? | | ????????????????????????# #????????????????????? | | ????????????????????????+ #############????????? | | ????????????? ??????????# a ???????? | | ????????????? ??????????# ???????? | | ????????????? ??????????# ! ???????? | | ????????????? ??????######Y########??????????????? | | ???????????## ??????# #??????????????????? | | ??????????? ??????# k = #??????????????????? | | ??????????? ??????# #??????????????????? | | ??????????? ??????# @! #??????????????????? | | ??????????? ??????# #??????????????????? | | ??????????? ??????# #??????????????????? | | ???????????# #??????# = #??????????????????? | | ???????????# #??????# #??????????????????? | | ???????????# #??????####+######??????????????????? | | #??????????# #?????????# #???????????????????????? | | #??????????# #?????#####+##??????????????????????? | | #??????#???# ####### #??????????????????????? | | #????? #???# + """ +??????????????????????? | | #???? ######## # """ #??????????????????????? | | #??? !# # # """ #??????????????????????? | | ### ?# + # #??????????????????????? | | / ???# # # #??????????????????????? | | #????# # ##+##+## #????????????????????? | | #????# !! # #????????????????????? | | #+###### !! # #?????????????????????? | | # ######## #?????????????????????? | | # """ +^ #?????????????????????? | | # """ # ######### #?????????????????????? | | # """ # #???????? #?????????????????????? | | # + #????????? #?????????????????????? | | # ##### #?????????? #?????????????????????? | | #####+###??# #??????????? ????????????????????? | | ### #?##%##????????????#?????????????????????? | +----------------------------------------------------+ Best States ------------- Heat Dissipation 31 Energy Generation 14 Energy Capacity 280 Matter Stores 300 Matter Capacity 300 Sight Range 18 Terrain Scan Range 16 Terrain Scan Density 10 ECM Strength 1 Armor Coverage 225 Core Shielding 20 Evasion (%) 55 Targeting Accuracy 5 Recoil Reduction 4 Offensive Hacking 20 Item Schematics ----------------- Core Shielding | -8/Materials | Scanalyzed Robot Schematics ------------------ None Fabricated ------------ Nothing Repaired ---------- Wheel | 65% | -9/Materials Wheel | 65% | -9/Materials Sml. Storage Unit | 21% | -9/Materials Alien Tech Used ----------------- None Achievements -------------- Universal Adapter Challenges ------------ None Game ------ Seed DispersalAntimatterArchive Manual? 0 Play Time 00:55:44 Cumulative 6.1 hours Start 2025.09.05 @ 19:06:02 End 2025.09.05 @ 22:41:23 Sessions 2 Manual Loads 0 Difficulty Rogue Special Mode None Game No. 7 Rogue 7 Adventurer 0 Explorer 0 Win Type - Total 0 Types 0/0/0/0/0/0/0/0/0/0 Lore% 1 Gallery% 8 Achievement% 10 Wizard Run 0 Options --------- Layout 1 ASCII 0 Keyboard 0 Movement Mouse Keybinds 0 Fullscreen 1 Font 24/Smallcaps Map View 50x35 Zoom Use 0% Tactical HUD 0 Map Filters NONE Filters NONE Steam 1 RUN: 980b68ea-33fa-4450-8ced-206a4b290935